fUST/lending_fUST_20250606
["ID","MTS","AMOUNT","RATE_DAILY","PERIOD"]
[364712873,1749216166336,-1728.71,0.00021917,2]
[364712874,1749216166362,-1131.64,0.00021917,2]
[364712875,1749216166387,-440.0,0.00021917,2]
[364712876,1749216166412,-2097.68,0.00021917,2]
[364712877,1749216166438,-1330.0,0.00021917,2]
[364712878,1749216166463,-3470.78,0.00021917,2]
[364712879,1749216166489,-480.66,0.00021917,2]
[364712880,1749216166516,-440.0,0.00021917,2]
[364712881,1749216166542,-554.61,0.00021917,2]
[364712882,1749216166568,-440.0,0.00021917,2]
[364712883,1749216166596,-725.81,0.00021917,2]
[364712884,1749216166623,-440.0,0.00021917,2]
[364712885,1749216166648,-842.08,0.00021917,2]
[364712886,1749216166673,-440.0,0.00021917,2]
[364712887,1749216166697,-497.11,0.00021917,2]
[364712888,1749216166721,-440.0,0.00021917,2]
[364712889,1749216166747,-531.61,0.00021917,2]
[364712890,1749216166777,-837.64,0.00021917,2]
[364712891,1749216166807,-649.43,0.00021917,2]
[364712892,1749216166831,-2506.99,0.00021917,2]
[364712893,1749216166858,-1792.59,0.00021917,2]
[364712894,1749216166886,-783.69,0.00021917,2]
[364712895,1749216166912,-1568.96,0.00021917,2]
[364712896,1749216166935,-440.0,0.00021917,2]
[364712897,1749216166960,-5364.40417,0.00022,2]
[364712898,1749216166987,-34181.59699301,0.00022,7]
[364712899,1749216334098,-157.04995616,0.00019078,2]
[364712900,1749216343981,244.504441,0.00013699,2]
[364712902,1749216359096,-324.36425087,0.00019078,2]
[364712903,1749216359116,-22.73703223,0.00019177,2]
[364712905,1749216429093,-277.26296777,0.00019177,2]
[364712906,1749216429114,-300.0,0.00019177,2]
[364712907,1749216429136,-300.0,0.00019177,2]
[364712908,1749216429156,-40.55119854,0.00019178,2]
[364712909,1749216431098,-331.90608808,0.00019178,2]
[364712910,1749216431118,-430.0,0.00019178,2]
[364712911,1749216431139,-430.0,0.00019178,2]
[364712912,1749216431159,-440.0,0.00019178,2]
[364712913,1749216431180,-430.0,0.00019178,2]
[364712914,1749216431201,-430.0,0.00019178,2]
[364712915,1749216431224,-440.0,0.00019178,2]
[364712916,1749216431248,-440.0,0.00019178,2]
[364712917,1749216431269,-440.0,0.00019178,2]
[364712918,1749216431291,-440.0,0.00019178,2]
[364712919,1749216431314,-1880.01,0.00019178,2]
[364712920,1749216431337,-456.13,0.00019178,2]
[364712921,1749216431359,-440.0,0.00019178,2]
[364712922,1749216431382,-440.0,0.00019178,2]
[364712923,1749216431403,-440.0,0.00019178,2]
[364712924,1749216431425,-440.0,0.00019178,2]
[364712925,1749216431447,-440.0,0.00019178,2]
[364712926,1749216431470,-453.73,0.00019178,2]
[364712927,1749216431494,-440.0,0.00019178,2]
[364712928,1749216431516,-45.16806957,0.00019178,2]
[364712929,1749216434101,-159.41436431,0.00019178,2]
[364712930,1749216434123,-421.99021606,0.00019178,2]
[364712931,1749216435205,-18.00978394,0.00019178,2]
[364712932,1749216435226,-140.56428976,0.00019178,2]
[364712933,1749216448122,-1217.38571024,0.00019178,2]
[364712934,1749216448146,-440.0,0.00019178,2]
[364712935,1749216448170,-440.0,0.00019178,2]
[364712936,1749216448192,-440.0,0.00019178,2]
[364712937,1749216448214,-440.0,0.00019178,2]
[364712938,1749216448239,-936.38,0.00019178,2]
[364712939,1749216448263,-1136.24,0.00019178,2]
[364712940,1749216448285,-440.0,0.00019178,2]
[364712941,1749216448308,-440.0,0.00019178,2]
[364712942,1749216448332,-1801.68,0.00019178,2]
[364712943,1749216448355,-440.0,0.00019178,2]
[364712944,1749216448376,-194.60105231,0.00019178,2]
[364712964,1749216494092,150.0,0.00018036,2]
[364712965,1749216494506,150.0,0.00018895,2]
[364712966,1749216519768,1041.261427,0.0002,120]
[364712967,1749216523635,14866.3329079,0.0001,2]
[364713028,1749216632415,-1153.81665609,0.00019,2]
[364713030,1749216632425,-171.43008079,0.00019078,2]
[364713032,1749216632435,-300.0,0.00019177,2]
[364713034,1749216632444,-1200.0,0.00019177,2]
[364713036,1749216632453,-440.0,0.00019178,2]
[364713038,1749216632463,-440.0,0.00019178,2]
[364713040,1749216632473,-145.71891902,0.00019178,2]
[364713042,1749216632485,-294.28108098,0.00019178,2]
[364713044,1749216632494,-440.0,0.00019178,2]
[364713046,1749216632504,-493.89657064,0.00019178,2]
[364713055,1749216632575,150.0,0.00018506,2]
[364713058,1749216632592,-324.84342936,0.00019178,2]
[364713061,1749216632601,-440.0,0.00019178,2]
[364713064,1749216632611,-430.0,0.00019178,2]
[364713067,1749216632621,-430.0,0.00019178,2]
[364713069,1749216632631,-430.0,0.00019178,2]
[364713071,1749216632641,-440.0,0.00019178,2]
[364713073,1749216632651,-440.0,0.00019178,2]
[364713075,1749216632660,-518.5210037,0.00019178,2]
[364713077,1749216632670,-440.0,0.00019178,2]
[364713079,1749216632680,-440.0,0.00019178,2]
[364713081,1749216632690,-440.0,0.00019178,2]
[364713083,1749216632699,-430.0,0.00019178,2]
[364713084,1749216632709,-440.0,0.00019178,2]
[364713085,1749216632718,-550.79608152,0.00019178,2]
[364713086,1749216632728,-212.24291803,0.00019178,2]
[364713087,1749216632737,-440.0,0.00019178,2]
[364713088,1749216632747,-430.0,0.00019178,2]
[364713089,1749216632756,-440.0,0.00019178,2]
[364713090,1749216632765,-500.0,0.00019178,2]
[364713091,1749216632774,-82.9181105,0.00019178,2]
[364713139,1749216638410,-347.0818895,0.00019178,2]
[364713141,1749216638420,-440.0,0.00019178,2]
[364713143,1749216638429,-440.0,0.00019178,2]
[364713145,1749216638439,-440.0,0.00019178,2]
[364713147,1749216638448,-440.0,0.00019178,2]
[364713149,1749216638458,-428.96527999,0.00019178,2]
[364713151,1749216638467,-765.36,0.00019178,2]
[364713153,1749216638476,-440.0,0.00019178,2]
[364713155,1749216638485,-401.65866752,0.00019178,2]
[364713157,1749216638494,-440.0,0.00019178,2]
[364713159,1749216638504,-447.99541671,0.00019178,2]
[364713161,1749216638513,-440.0,0.00019178,2]
[364713163,1749216638522,-440.0,0.00019178,2]
[364713165,1749216638532,-430.0,0.00019178,2]
[364713167,1749216638541,-440.0,0.00019178,2]
[364713169,1749216638550,-440.0,0.00019178,2]
[364713171,1749216638559,-453.53,0.00019178,2]
[364713173,1749216638569,-249.99291804,0.00019178,2]
[364713175,1749216638578,-440.0,0.00019178,2]
[364713177,1749216638587,-11.14307379,0.00019178,2]
[364713179,1749216638597,-36087.2171775,0.00019178,2]
[364713181,1749216638606,-1794.77784909,0.00019178,2]
[364713183,1749216638616,-150.0,0.00019387,2]
[364713185,1749216638625,-440.0,0.00019451,2]
[364713187,1749216638635,-649.43,0.00019451,2]
[364713189,1749216638644,-1792.59,0.00019451,2]
[364713191,1749216638653,-1568.96,0.00019451,2]
[364713193,1749216638662,-440.0,0.00019451,2]
[364713195,1749216638671,-440.0,0.00019451,2]
[364713197,1749216638683,-440.0,0.00019451,2]
[364713199,1749216638691,-390.0,0.00019451,2]
[364713201,1749216638701,-440.0,0.00019451,2]
[364713203,1749216638711,-440.0,0.00019452,2]
[364713205,1749216638720,-440.0,0.00019452,2]
[364713207,1749216638730,-440.0,0.00019452,2]
[364713209,1749216638739,-440.0,0.00019452,2]
[364713211,1749216638748,-440.0,0.00019452,2]
[364713213,1749216638758,-440.0,0.00019452,2]
[364713215,1749216638767,-440.0,0.00019452,2]
[364713217,1749216638776,-440.0,0.00019452,2]
[364713219,1749216638786,-936.38,0.00019452,2]
[364713221,1749216638795,-1136.24,0.00019452,2]
[364713223,1749216638804,-440.0,0.00019452,2]
[364713226,1749216638822,-440.0,0.00019452,2]
[364713228,1749216638833,-1801.68,0.00019452,2]
[364713230,1749216638842,-440.0,0.00019452,2]
[364713232,1749216638852,-440.0,0.00019452,2]
[364713234,1749216638861,-440.0,0.00019452,2]
[364713236,1749216638871,-440.0,0.00019452,2]
[364713238,1749216638880,-440.0,0.00019452,2]
[364713240,1749216638890,-818.74,0.00019452,2]
[364713242,1749216638900,-440.0,0.00019452,2]
[364713244,1749216638909,-440.0,0.00019452,2]
[364713246,1749216638918,-440.0,0.00019452,2]
[364713248,1749216638928,-440.0,0.00019452,2]
[364713250,1749216638939,-440.0,0.00019452,2]
[364713253,1749216638949,-440.0,0.00019452,2]
[364713254,1749216638958,-194.45383308,0.00019452,2]
[364713256,1749216638967,-449.02529809,0.00019452,2]
[364713258,1749216638978,-440.0,0.00019452,2]
[364713261,1749216638987,-440.0,0.00019452,2]
[364713262,1749216638998,-440.0,0.00019452,2]
[364713265,1749216639008,-765.36,0.00019452,2]
[364713267,1749216639019,-440.0,0.00019452,2]
[364713269,1749216639030,-440.0,0.00019452,2]
[364713270,1749216639039,-166.756726,0.00019452,2]
[364713272,1749216639049,-440.0,0.00019452,2]
[364713275,1749216639058,-440.0,0.00019452,2]
[364713277,1749216639068,-440.0,0.00019452,2]
[364713279,1749216639077,-453.53,0.00019452,2]
[364713281,1749216639086,-440.0,0.00019452,2]
[364713283,1749216639095,-500.0,0.00019452,2]
[364713284,1749216639105,-187.399233,0.00019491,2]
[364713286,1749216639115,-502.88093826,0.00019639,2]
[364713289,1749216639124,-500.0,0.00019639,2]
[364713291,1749216639134,-440.0,0.00019724,2]
[364713293,1749216639143,-440.0,0.00019724,2]
[364713295,1749216639152,-440.0,0.00019724,2]
[364713297,1749216639161,-612.97,0.00019725,2]
[364713299,1749216639170,-720.42,0.00019725,2]
[364713301,1749216639179,-440.0,0.00019725,2]
[364713303,1749216639188,-440.0,0.00019725,2]
[364713305,1749216639198,-545.12192138,0.00019725,2]
[364713307,1749216639208,-440.0,0.00019725,2]
[364713309,1749216639217,-2450.41,0.00019725,2]
[364713311,1749216639226,-513.28,0.00019725,2]
[364713313,1749216639235,-440.0,0.00019725,2]
[364713315,1749216639244,-440.0,0.00019725,2]
[364713317,1749216639254,-440.0,0.00019725,2]
[364713319,1749216639263,-440.0,0.00019725,2]
[364713321,1749216639273,-649.43,0.00019725,2]
[364713323,1749216639282,-440.0,0.00019725,2]
[364713325,1749216639291,-440.0,0.00019725,2]
[364713327,1749216639301,-440.0,0.00019725,2]
[364713329,1749216639311,-1792.59,0.00019725,2]
[364713331,1749216639320,-440.0,0.00019725,2]
[364713333,1749216639330,-1568.96,0.00019725,2]
[364713335,1749216639339,-440.0,0.00019725,2]
[364713337,1749216639349,-440.0,0.00019725,2]
[364713339,1749216639358,-587.16304819,0.00019725,2]
[364713341,1749216639368,-440.0,0.00019725,2]
[364713343,1749216639379,-440.0,0.00019725,2]
[364713345,1749216639390,-440.0,0.00019726,2]
[364713347,1749216639399,-440.0,0.00019726,2]
[364713349,1749216639409,-395.75,0.00019726,2]
[364713351,1749216639419,-354.224126,0.00019726,2]
[364713353,1749216639429,-440.0,0.00019726,2]
[364713355,1749216639439,-440.0,0.00019726,2]
[364713357,1749216639448,-552.17,0.00019726,2]
[364713359,1749216639458,-440.0,0.00019726,2]
[364713361,1749216639467,-936.38,0.00019726,2]
[364713363,1749216639477,-1136.24,0.00019726,2]
[364713366,1749216639486,-440.0,0.00019726,2]
[364713368,1749216639497,-440.0,0.00019726,2]
[364713370,1749216639506,-1801.68,0.00019726,2]
[364713372,1749216639516,-440.0,0.00019726,2]
[364713374,1749216639526,-440.0,0.00019726,2]
[364713376,1749216639536,-440.0,0.00019726,2]
[364713378,1749216639545,-440.0,0.00019726,2]
[364713380,1749216639554,-818.74,0.00019726,2]
[364713382,1749216639564,-440.0,0.00019726,2]
[364713384,1749216639573,-474.13494132,0.00019726,2]
[364713386,1749216639583,-440.0,0.00019726,2]
[364713388,1749216639592,-440.0,0.00019726,2]
[364713390,1749216639602,-380.0,0.00019726,2]
[364713392,1749216639611,-440.0,0.00019726,2]
[364713394,1749216639622,-350.0,0.00019726,2]
[364713396,1749216639632,-440.0,0.00019726,2]
[364713398,1749216639642,-765.36,0.00019726,2]
[364713400,1749216639651,-263.80503044,0.00019726,2]
[364713402,1749216639661,-440.0,0.00019726,2]
[364713404,1749216639671,-416.09345987,0.00019726,2]
[364713406,1749216639680,-453.53,0.00019726,2]
[364713409,1749216639691,-440.0,0.00019726,2]
[364713410,1749216639701,-500.0,0.00019726,2]
[364713413,1749216639710,-680.76785744,0.00019817,2]
[364713414,1749216639720,-440.0,0.00019998,2]
[364713417,1749216639730,-217.10844023,0.00019999,2]
[364713437,1749216639910,-612.97,0.00019999,2]
[364713439,1749216639921,-720.42,0.00019999,2]
[364713441,1749216639931,-440.0,0.00019999,2]
[364713443,1749216639945,-440.0,0.00019999,2]
[364713445,1749216639955,-440.0,0.00019999,2]
[364713447,1749216639964,-2450.41,0.00019999,2]
[364713449,1749216639973,-513.28,0.00019999,2]
[364713451,1749216639984,-440.0,0.00019999,2]
[364713453,1749216639994,-440.0,0.00019999,2]
[364713455,1749216640003,-440.0,0.00019999,2]
[364713457,1749216640013,-440.0,0.00019999,2]
[364713459,1749216640024,-649.43,0.00019999,2]
[364713461,1749216640035,-433.71564651,0.00019999,2]
[364713463,1749216640055,-440.0,0.00019999,2]
[364713465,1749216640072,-1792.59,0.00019999,2]
[364713467,1749216640082,-440.0,0.00019999,2]
[364713469,1749216640091,-1568.96,0.00019999,2]
[364713471,1749216640102,-440.0,0.00019999,2]
[364713473,1749216640112,-440.0,0.00019999,2]
[364713476,1749216640125,-440.0,0.00019999,2]
[364713478,1749216640135,-440.0,0.00019999,2]
[364713481,1749216640145,-440.0,0.0002,2]
[364713484,1749216640155,-440.0,0.0002,2]
[364713486,1749216640165,-440.0,0.0002,2]
[364713488,1749216640174,-440.0,0.0002,2]
[364713490,1749216640184,-936.38,0.0002,2]
[364713492,1749216640193,-1136.24,0.0002,2]
[364713494,1749216640203,-440.0,0.0002,2]
[364713496,1749216640212,-1801.68,0.0002,2]
[364713498,1749216640221,-440.0,0.0002,2]
[364713500,1749216640230,-440.0,0.0002,2]
[364713502,1749216640240,-440.0,0.0002,2]
[364713504,1749216640249,-440.0,0.0002,2]
[364713506,1749216640258,-2954.61293138,0.0002,2]
[364713508,1749216640268,-818.74,0.0002,2]
[364713510,1749216640279,-440.0,0.0002,2]
[364713512,1749216640288,-440.0,0.0002,2]
[364713514,1749216640298,-440.0,0.0002,2]
[364713516,1749216640307,-440.0,0.0002,2]
[364713518,1749216640317,-440.0,0.0002,2]
[364713520,1749216640327,-765.36,0.0002,2]
[364713522,1749216640336,-7905.42232809,0.0002,2]
[364713524,1749216640346,-440.0,0.0002,2]
[364713526,1749216640356,-453.53,0.0002,2]
[364713528,1749216640366,-500.57114652,0.00020132,2]
[364713530,1749216640376,-1000.0,0.00020187,2]
[364713532,1749216640386,-244.504441,0.00020187,2]
[364713534,1749216640396,-490.71875841,0.00020221,2]
[364713537,1749216640405,-500.0,0.00020221,2]
[364713539,1749216640417,-500.0,0.00020221,2]
[364713541,1749216640427,-500.0,0.00020221,2]
[364713543,1749216640437,-500.0,0.00020221,2]
[364713545,1749216640447,-501.37251406,0.00020221,2]
[364713547,1749216640457,-500.0,0.00020221,2]
[364713549,1749216640467,-500.0,0.00020221,2]
[364713551,1749216640476,-150.0,0.00020268,2]
[364713553,1749216640486,-440.0,0.00020273,2]
[364713555,1749216640495,-400.0,0.00020273,2]
[364713557,1749216640505,-440.0,0.00020273,2]
[364713559,1749216640515,-440.0,0.00020273,2]
[364713561,1749216640524,-936.38,0.00020273,2]
[364713563,1749216640534,-612.97,0.00020273,2]
[364713565,1749216640543,-1136.24,0.00020273,2]
[364713567,1749216640553,-720.42,0.00020273,2]
[364713569,1749216640562,-440.0,0.00020273,2]
[364713571,1749216640572,-440.0,0.00020273,2]
[364713573,1749216640581,-1801.68,0.00020273,2]
[364713575,1749216640591,-440.0,0.00020273,2]
[364713577,1749216640600,-440.0,0.00020273,2]
[364713579,1749216640609,-440.0,0.00020273,2]
[364713581,1749216640621,-440.0,0.00020273,2]
[364713583,1749216640631,-440.0,0.00020273,2]
[364713585,1749216640640,-440.0,0.00020273,2]
[364713587,1749216640649,-818.74,0.00020273,2]
[364713589,1749216640659,-440.0,0.00020273,2]
[364713591,1749216640669,-2450.41,0.00020273,2]
[364713593,1749216640679,-513.28,0.00020273,2]
[364713595,1749216640689,-440.0,0.00020273,2]
[364713597,1749216640698,-440.0,0.00020273,2]
[364713599,1749216640707,-440.0,0.00020273,2]
[364713601,1749216640716,-649.43,0.00020273,2]
[364713603,1749216640726,-440.0,0.00020273,2]
[364713605,1749216640735,-440.0,0.00020273,2]
[364713607,1749216640745,-1792.59,0.00020273,2]
[364713609,1749216640754,-765.36,0.00020273,2]
[364713611,1749216640764,-1568.96,0.00020273,2]
[364713613,1749216640773,-440.0,0.00020273,2]
[364713615,1749216640783,-440.0,0.00020273,2]
[364713617,1749216640792,-163.52,0.00020273,2]
[364713619,1749216640802,-440.0,0.00020273,2]
[364713622,1749216640811,-453.53,0.00020273,2]
[364713624,1749216640821,-440.0,0.00020273,2]
[364713626,1749216640830,-164.44026383,0.00020394,5]
[364713628,1749216640839,-160.45282392,0.00020394,5]
[364713630,1749216640849,-171.43008075,0.00020409,2]
[364713632,1749216640858,-842.5625,0.00020524,2]
[364713634,1749216640869,-11849.89752062,0.00020524,2]
[364713637,1749216640879,-440.0,0.00020547,2]
[364713638,1749216640888,-440.0,0.00020547,2]
[364713640,1749216640897,-440.0,0.00020547,2]
[364713643,1749216640907,-936.38,0.00020547,2]
[364713645,1749216640916,-612.97,0.00020547,2]
[364713647,1749216640925,-1136.24,0.00020547,2]
[364713649,1749216640935,-720.42,0.00020547,2]
[364713651,1749216640948,-440.0,0.00020547,2]
[364713653,1749216640957,-440.0,0.00020547,2]
[364713654,1749216640966,-1801.68,0.00020547,2]
[364713656,1749216640975,-440.0,0.00020547,2]
[364713658,1749216640985,-440.0,0.00020547,2]
[364713660,1749216640995,-440.0,0.00020547,2]
[364713662,1749216641004,-440.0,0.00020547,2]
[364713664,1749216641016,-440.0,0.00020547,2]
[364713666,1749216641025,-430.0,0.00020547,2]
[364713668,1749216641035,-818.74,0.00020547,2]
[364713670,1749216641044,-440.0,0.00020547,2]
[364713672,1749216641053,-2450.41,0.00020547,2]
[364713674,1749216641062,-513.28,0.00020547,2]
[364713676,1749216641071,-440.0,0.00020547,2]
[364713678,1749216641081,-440.0,0.00020547,2]
[364713680,1749216641090,-441.33810003,0.00020547,2]
[364713682,1749216641099,-649.43,0.00020547,2]
[364713684,1749216641109,-286.24906719,0.00020547,2]
[364713686,1749216641120,-440.0,0.00020547,2]
[364713688,1749216641129,-1792.59,0.00020547,2]
[364713690,1749216641139,-765.36,0.00020547,2]
[364713692,1749216641148,-1568.96,0.00020547,2]
[364713694,1749216641157,-440.0,0.00020547,2]
[364713696,1749216641166,-440.0,0.00020547,2]
[364713698,1749216641175,-440.0,0.00020547,2]
[364713700,1749216641185,-453.53,0.00020547,2]
[364713702,1749216641195,-440.0,0.00020547,2]
[364713704,1749216641204,-745.74,0.000206,2]
[364713706,1749216641214,-600.0,0.00020664,2]
[364713708,1749216641224,-229.52673067,0.00020669,2]
[364713710,1749216641234,-160.0,0.00020669,2]
[364713712,1749216641243,-160.0,0.00020669,2]
[364713714,1749216641252,-834.50537533,0.00020669,2]
[364713716,1749216641262,-160.0,0.00020669,2]
[364713718,1749216641271,-423.83542519,0.00020669,2]
[364713720,1749216641281,-940.75061989,0.00020735,2]
[364713722,1749216641291,-813.06,0.00020759,3]
[364713724,1749216641301,-1000.0,0.00020769,2]
[364713726,1749216641310,-1000.0,0.00020769,2]
[364713728,1749216641319,-440.0,0.00020821,2]
[364713730,1749216641328,-440.0,0.00020821,2]
[364713732,1749216641338,-440.0,0.00020821,2]
[364713734,1749216641347,-936.38,0.00020821,2]
[364713736,1749216641357,-612.97,0.00020821,2]
[364713738,1749216641367,-1136.24,0.00020821,2]
[364713740,1749216641376,-720.42,0.00020821,2]
[364713742,1749216641385,-440.0,0.00020821,2]
[364713744,1749216641396,-440.0,0.00020821,2]
[364713746,1749216641405,-1801.68,0.00020821,2]
[364713748,1749216641415,-440.0,0.00020821,2]
[364713750,1749216641425,-440.0,0.00020821,2]
[364713752,1749216641434,-440.0,0.00020821,2]
[364713754,1749216641444,-440.0,0.00020821,2]
[364713756,1749216641454,-440.0,0.00020821,2]
[364713758,1749216641463,-818.74,0.00020821,2]
[364713760,1749216641472,-440.0,0.00020821,2]
[364713762,1749216641482,-2450.41,0.00020821,2]
[364713764,1749216641491,-513.28,0.00020821,2]
[364713766,1749216641500,-440.0,0.00020821,2]
[364713768,1749216641510,-360.77169749,0.00020821,2]
[364713770,1749216641519,-649.43,0.00020821,2]
[364713772,1749216641529,-440.0,0.00020821,2]
[364713774,1749216641539,-1792.59,0.00020821,2]
[364713776,1749216641549,-765.36,0.00020821,2]
[364713778,1749216641558,-1568.96,0.00020821,2]
[364713780,1749216641568,-440.0,0.00020821,2]
[364713782,1749216641578,-440.0,0.00020821,2]
[364713784,1749216641587,-440.0,0.00020821,2]
[364713786,1749216641597,-453.53,0.00020821,2]
[364713788,1749216641606,-440.0,0.00020821,2]
[364713790,1749216641617,-311.3791089,0.00020822,2]
[364713792,1749216641626,-420.0,0.00020899,2]
[364713794,1749216641636,-420.0,0.00020899,2]
[364713796,1749216641646,-1300.5266055,0.000209,4]
[364713798,1749216641655,-1680.0,0.00021,2]
[364713800,1749216641664,-1300.52660548,0.00021038,4]
[364713802,1749216641675,-440.0,0.00021095,2]
[364713804,1749216641686,-370.03079413,0.00021095,2]
[364713807,1749216641698,-440.0,0.00021095,2]
[364713809,1749216641710,-936.38,0.00021095,2]
[364713811,1749216641721,-612.97,0.00021095,2]
[364713814,1749216641733,-1136.24,0.00021095,2]
[364713816,1749216641745,-720.42,0.00021095,2]
[364713818,1749216641757,-460.20120988,0.00021095,2]
[364713820,1749216641768,-440.0,0.00021095,2]
[364713822,1749216641778,-1801.68,0.00021095,2]
[364713824,1749216641788,-440.0,0.00021095,2]
[364713826,1749216641798,-440.0,0.00021095,2]
[364713829,1749216641810,-440.0,0.00021095,2]
[364713831,1749216641822,-440.0,0.00021095,2]
[364713833,1749216641833,-440.0,0.00021095,2]
[364713835,1749216641843,-818.74,0.00021095,2]
[364713837,1749216641854,-440.0,0.00021095,2]
[364713839,1749216641865,-2450.41,0.00021095,2]
[364713841,1749216641876,-513.28,0.00021095,2]
[364713842,1749216641886,-440.0,0.00021095,2]
[364713843,1749216641896,-649.43,0.00021095,2]
[364713844,1749216641907,-440.0,0.00021095,2]
[364713845,1749216641918,-1792.59,0.00021095,2]
[364713846,1749216641929,-765.36,0.00021095,2]
[364713847,1749216641944,-1568.96,0.00021095,2]
[364713848,1749216641955,-440.0,0.00021095,2]
[364713849,1749216641965,-440.0,0.00021095,2]
[364713850,1749216641975,-440.0,0.00021095,2]
[364713851,1749216641986,-453.53,0.00021095,2]
[364713852,1749216641998,-185.06,0.00021095,2]
[364713853,1749216642009,-1300.52660548,0.00021176,4]
[364713854,1749216642021,-1300.52660548,0.00021314,5]
[364713855,1749216642031,-1500.0,0.00021317,2]
[364713856,1749216642041,-504.89682241,0.00021317,2]
[364713857,1749216642051,-449.06772506,0.00021369,2]
[364713858,1749216642062,-440.0,0.00021369,2]
[364713859,1749216642071,-936.38,0.00021369,2]
[364713860,1749216642083,-612.97,0.00021369,2]
[364713862,1749216642093,-1136.24,0.00021369,2]
[364713865,1749216642105,-720.42,0.00021369,2]
[364713867,1749216642115,-440.0,0.00021369,2]
[364713869,1749216642126,-1801.68,0.00021369,2]
[364713871,1749216642137,-440.0,0.00021369,2]
[364713873,1749216642149,-440.0,0.00021369,2]
[364713875,1749216642160,-440.0,0.00021369,2]
[364713878,1749216642171,-440.0,0.00021369,2]
[364713880,1749216642181,-440.0,0.00021369,2]
[364713882,1749216642191,-818.74,0.00021369,2]
[364713884,1749216642202,-307.69989397,0.00021369,2]
[364713886,1749216642212,-2450.41,0.00021369,2]
[364713888,1749216642222,-513.28,0.00021369,2]
[364713890,1749216642232,-440.0,0.00021369,2]
[364713892,1749216642243,-649.43,0.00021369,2]
[364713894,1749216642254,-440.0,0.00021369,2]
[364713896,1749216642266,-1792.59,0.00021369,2]
[364713899,1749216642277,-765.36,0.00021369,2]
[364713901,1749216642286,-1568.96,0.00021369,2]
[364713903,1749216642297,-440.0,0.00021369,2]
[364713905,1749216642308,-440.0,0.00021369,2]
[364713907,1749216642319,-440.0,0.00021369,2]
[364713909,1749216642329,-453.53,0.00021369,2]
[364713911,1749216642340,-1300.52660548,0.00021452,5]
[364713914,1749216642352,-1300.52660548,0.0002159,5]
[364713916,1749216642363,-440.0,0.00021643,2]
[364713918,1749216642375,-936.38,0.00021643,2]
[364713920,1749216642386,-612.97,0.00021643,2]
[364713922,1749216642397,-1136.24,0.00021643,2]
[364713925,1749216642409,-720.42,0.00021643,2]
[364713927,1749216642420,-440.0,0.00021643,2]
[364713929,1749216642431,-1801.68,0.00021643,2]
[364713931,1749216642443,-440.0,0.00021643,2]
[364713933,1749216642455,-440.0,0.00021643,2]
[364713936,1749216642467,-440.0,0.00021643,2]
[364713938,1749216642478,-440.0,0.00021643,2]
[364713940,1749216642488,-440.0,0.00021643,2]
[364713942,1749216642498,-818.74,0.00021643,2]
[364713944,1749216642508,-2450.41,0.00021643,2]